fUST/lending_fUST_20241113
["ID","MTS","AMOUNT","RATE_DAILY","PERIOD"]
[342105559,1731445843731,-2993.61,0.00022465,2]
[342105560,1731445843740,-151.0,0.00022465,7]
[342105561,1731445843750,-2863.61,0.00022465,2]
[342105562,1731445843758,-151.0,0.00022465,7]
[342105563,1731445843768,-500.0,0.00022465,2]
[342105564,1731445843777,-672.99,0.00022465,2]
[342105565,1731445843787,-151.0,0.00022465,7]
[342105566,1731445843796,-500.0,0.00022465,2]
[342105567,1731445843806,-178.256992,0.00022465,7]
[342105568,1731445843815,-178.256992,0.00022465,7]
[342105570,1731445843824,-429.707218,0.00022465,7]
[342105571,1731445843834,-500.0,0.00022465,2]
[342105572,1731445843847,-151.0,0.00022465,7]
[342105573,1731445843856,-429.707218,0.00022465,7]
[342105574,1731445843865,-151.0,0.00022465,7]
[342105575,1731445843875,-500.0,0.00022465,2]
[342105576,1731445843885,-300.88383776,0.00022465,2]
[342105577,1731445843894,-706.479794,0.00022465,7]
[342105578,1731445843904,-706.479794,0.00022465,7]
[342105579,1731445843914,-151.0,0.00022465,7]
[342105580,1731445843923,-500.0,0.00022465,2]
[342105581,1731445843933,-500.0,0.00022465,2]
[342105582,1731445844023,-11986.63,0.00022465,2]
[342105583,1731445844033,-448.127606,0.00022465,7]
[342105584,1731445844042,-500.0,0.00022465,2]
[342105585,1731445844052,-500.0,0.00022465,2]
[342105586,1731445844061,-448.127606,0.00022465,7]
[342105587,1731445844070,-887.12,0.00022465,2]
[342105588,1731445844079,-151.0,0.00022465,7]
[342105589,1731445844088,-1117.52,0.00022465,2]
[342105590,1731445844097,-2500.29,0.00022465,2]
[342105591,1731445844106,-151.0,0.00022465,7]
[342105592,1731445844116,-151.0,0.00022465,7]
[342105593,1731445844125,-1191.16,0.00022465,2]
[342105594,1731445844134,-500.0,0.00022465,2]
[342105595,1731445844143,-500.0,0.00022465,2]
[342105596,1731445844156,-501.66,0.00022465,2]
[342105597,1731445844165,-500.0,0.00022465,2]
[342105598,1731445844174,-500.0,0.00022465,2]
[342105599,1731445844183,-500.0,0.00022465,2]
[342105600,1731445844192,-151.0,0.00022465,7]
[342105601,1731445844201,-570.82,0.00022465,2]
[342105602,1731445844210,-500.0,0.00022465,2]
[342105603,1731445844220,-500.0,0.00022465,2]
[342105604,1731445844228,-673.51,0.00022465,2]
[342105605,1731445844238,-1313.08,0.00022465,2]
[342105606,1731445844246,-224.028798,0.00022465,7]
[342105607,1731445844255,-500.0,0.00022465,2]
[342105608,1731445844265,-224.028798,0.00022465,7]
[342105609,1731445844274,-500.0,0.00022465,2]
[342105610,1731445844283,-1657.29,0.00022465,2]
[342105611,1731445844292,-878.74,0.00022465,2]
[342105613,1731445844301,-151.0,0.00022465,7]
[342105614,1731445844311,-151.0,0.00022465,7]
[342105615,1731445844320,-2522.66,0.00022465,2]
[342105617,1731445844329,-151.0,0.00022465,7]
[342105619,1731445844338,-500.0,0.00022465,2]
[342105621,1731445844348,-164.949915,0.00022465,7]
[342105623,1731445844357,-151.0,0.00022465,7]
[342105624,1731445844366,-500.0,0.00022465,2]
[342105625,1731445844375,-4378.0,0.00022479,4]
[342105626,1731445844384,-6095.31129396,0.000225,2]
[342105627,1731445844407,-19848.03870604,0.000225,2]
[342105628,1731445844417,-151.0,0.000225,7]
[342105629,1731445844426,-200.0,0.0002255,8]
[342105630,1731445844435,-153.0,0.00022568,2]
[342105632,1731445844445,-153.0,0.00022568,2]
[342105633,1731445844455,-153.0,0.00022568,2]
[342105634,1731445844464,-153.0,0.00022568,2]
[342105635,1731445844474,-153.0,0.00022568,2]
[342105636,1731445844483,-153.0,0.00022568,2]
[342105637,1731445844493,-153.0,0.00022568,2]
[342105639,1731445844503,-153.0,0.00022568,2]
[342105640,1731445844513,-153.0,0.00022568,2]
[342105642,1731445844522,-153.0,0.00022568,2]
[342105644,1731445844532,-153.0,0.00022568,2]
[342105645,1731445844541,-153.0,0.00022568,2]
[342105646,1731445844551,-153.0,0.00022568,2]
[342105647,1731445844560,-153.0,0.00022568,2]
[342105648,1731445844568,-153.0,0.00022568,2]
[342105650,1731445844578,-153.0,0.00022568,2]
[342105651,1731445844586,-153.0,0.00022568,2]
[342105652,1731445844595,-153.0,0.00022568,2]
[342105653,1731445844604,-153.0,0.00022568,2]
[342105654,1731445844613,-153.0,0.00022568,2]
[342105655,1731445844623,-153.0,0.00022568,2]
[342105656,1731445844632,-153.0,0.00022568,2]
[342105657,1731445844641,-153.0,0.00022568,2]
[342105658,1731445844653,-153.0,0.00022568,2]
[342105659,1731445844662,-212.5,0.00022584,2]
[342105660,1731445844671,-650.30376731,0.00022629,2]
[342105661,1731445844681,-151.0,0.00022739,7]
[342105662,1731445844690,-500.0,0.00022739,2]
[342105663,1731445844699,-905.23,0.00022739,2]
[342105664,1731445844708,-500.0,0.00022739,2]
[342105665,1731445844717,-500.0,0.00022739,2]
[342105666,1731445844726,-679.47,0.00022739,2]
[342105667,1731445844736,-500.0,0.00022739,2]
[342105668,1731445844745,-228.95,0.00022739,2]
[342105669,1731445844754,-500.0,0.00022739,2]
[342105670,1731445844763,-500.0,0.00022739,2]
[342105671,1731445844773,-640.48100532,0.00022739,2]
[342105672,1731445844782,-500.0,0.00022739,2]
[342105673,1731445844791,-500.0,0.00022739,2]
[342105674,1731445844800,-500.0,0.00022739,2]
[342105675,1731445844809,-576.29,0.00022739,2]
[342105676,1731445844819,-44.62752081,0.00022739,7]
[342105677,1731445844991,-164.949915,0.00022191,7]
[342105678,1731445845001,-164.949915,0.000224,7]
[342105679,1731445845011,-164.949915,0.00022465,7]
[342105680,1731445845020,-106.37247919,0.00022739,7]
[342105681,1731445845030,-500.0,0.00022739,2]
[342105682,1731445845039,-500.0,0.00022739,2]
[342105683,1731445845048,-915.948477,0.00022739,7]
[342105684,1731445845057,-152.061582,0.00022739,7]
[342105685,1731445845066,-152.061582,0.00022739,7]
[342105686,1731445845075,-915.948477,0.00022739,7]
[342105687,1731445845084,-500.0,0.00022739,2]
[342105688,1731445845093,-302.113437,0.00022739,7]
[342105689,1731445845102,-500.0,0.00022739,2]
[342105690,1731445845112,-302.113437,0.00022739,7]
[342105691,1731445845122,-410.01676688,0.00022739,2]
[342105710,1731445848231,889.29754471,0.00019869,2]
[342105711,1731445848262,1387.12254979,0.00019869,2]
[342105714,1731445886186,237.15714106,0.00029041,120]
[342105717,1731446002166,844.03433878,0.00030136,120]
[342105718,1731446306927,151.0,0.0003,120]
[342105719,1731446307569,151.0,0.00030986,120]
[342105720,1731446333813,999.0,0.00030136,120]
[342105721,1731446344580,500.0,0.00030136,120]
[342105722,1731446344864,500.0,0.00030136,120]
[342105723,1731446345142,500.0,0.00030136,120]
[342105724,1731446345409,500.0,0.00030136,120]
[342105725,1731446345730,500.0,0.00030136,120]
[342105726,1731446346030,500.0,0.00030136,120]
[342105727,1731446346293,195.88,0.00030136,120]
[342105728,1731446366853,151.0,0.0003,120]
[342105730,1731446458943,160.756915,0.00013973,2]
[342105731,1731446462012,999.0,0.00030136,120]
[342105733,1731446601047,535.23,0.00027,60]
[342105734,1731446695845,780.7617632,0.00019775,2]
[342105735,1731446695882,37.26950426,0.0002,2]
[342105740,1731446742665,999.0,0.00030136,120]
[342105742,1731446790722,150.0,0.00030107,120]
[342105747,1731446832351,150.0,0.00018,2]
[342105773,1731446850722,150.0,0.00029541,120]
[342105774,1731446854010,901.664309,0.00019582,2]
[342105775,1731446858837,166.8826884,0.00031,120]
[342105776,1731446879849,250.0,0.00019591,2]
[342105777,1731446893211,958.04634142,0.000167,2]
[342105778,1731446902785,194.73926994,0.000125,2]
[342105779,1731446902816,6404.92560572,0.000125,2]
[342105780,1731446914350,1620.90208839,0.000134,2]
[342105787,1731446919435,1974.17230589,0.00015,7]
[342105788,1731446919462,2267.05911758,0.00015,7]
[342105789,1731446921192,2712.58543143,0.0003,120]
[342105790,1731446921213,171.92615468,0.0003,120]
[342105791,1731446922482,338.07096396,0.0001,7]
[342105792,1731446926301,11201.9345993,0.00016,7]
[342105793,1731446926332,2473.70167953,0.00016,7]
[342105812,1731447032964,-298.755901,0.00019049,2]
[342105813,1731447032974,-45.49956275,0.00019999,2]
[342105814,1731447032985,-254.50043725,0.00019999,2]
[342105815,1731447032995,-300.0,0.00019999,2]
[342105816,1731447033004,-6476.42181937,0.0002,2]
[342105818,1731447033014,-1169.27083333,0.0002,2]
[342105820,1731447033023,-847.71856844,0.0002,2]
[342105822,1731447033036,-151.61833421,0.0002,7]
[342105824,1731447033045,-4338.18728329,0.00020048,2]
[342105826,1731447033055,-22054.28272411,0.00020148,2]
[342105829,1731447033068,-745.02728212,0.00020148,2]
[342105870,1731447039011,-1169.27083333,0.0002,2]
[342105872,1731447039021,-2100.68999377,0.00020148,2]
[342105874,1731447039031,-901.664309,0.00020267,2]
[342105876,1731447039040,-2773.51435398,0.00020371,2]
[342105878,1731447039049,-684.02582241,0.00020371,2]
[342105880,1731447039058,-2258.2203743,0.00020371,2]
[342105882,1731447039067,-4314.06652872,0.0002066,7]
[342105884,1731447039076,-160.756915,0.00020807,2]
[342105886,1731447039086,-901.664309,0.00020952,2]
[342105888,1731447039095,-10000.0,0.00021,5]
[342105890,1731447039104,-153.0,0.00021394,2]
[342105892,1731447039113,-153.0,0.00021394,2]
[342105894,1731447039122,-153.0,0.00021394,2]
[342105895,1731447039132,-153.0,0.00021394,2]
[342105898,1731447039143,-153.0,0.00021394,2]
[342105900,1731447039152,-164.541,0.00021398,2]
[342105901,1731447039163,-166.81275,0.00021398,2]
[342105904,1731447039172,-4338.18728329,0.00021516,2]
[342105906,1731447039182,-420.0,0.00021777,2]
[342105908,1731447039191,-477.70252483,0.00021817,2]
[342105910,1731447039206,-4441.0,0.00021817,2]
[342105912,1731447039217,-1794.83213483,0.00021817,2]
[342105914,1731447039226,-162.57594185,0.00021817,2]
[342105916,1731447039235,-366.74,0.00021907,3]
[342105918,1731447039244,-152.10583808,0.00021916,2]
[342105920,1731447039254,-500.0,0.00021916,2]
[342105922,1731447039263,-500.0,0.00021916,2]
[342105924,1731447039272,-472.2410507,0.00021916,2]
[342105926,1731447039283,-451.48473265,0.00021916,2]
[342105928,1731447039292,-500.0,0.00021917,2]
[342105930,1731447039301,-500.0,0.00021917,2]
[342105932,1731447039310,-198.88894441,0.00021917,2]
[342105934,1731447039319,-507.44764288,0.00021917,2]
[342105936,1731447039328,-502.19057876,0.00021917,2]
[342105937,1731447039337,-503.23997793,0.00021917,2]
[342105939,1731447039346,-503.67810419,0.00021917,2]
[342105942,1731447039355,-506.69352662,0.00021917,2]
[342105944,1731447039364,-502.10999426,0.00021917,2]
[342105946,1731447039373,-500.0,0.00021917,2]
[342105948,1731447039383,-559.382481,0.00021917,2]
[342105950,1731447039392,-754.36,0.00021917,2]
[342105952,1731447039401,-509.31217965,0.00021917,2]
[342105953,1731447039410,-505.57666064,0.00021917,2]
[342105955,1731447039419,-500.0,0.00021917,2]
[342105957,1731447039428,-500.0,0.00021917,2]
[342105959,1731447039438,-500.0,0.00021917,2]
[342105962,1731447039447,-500.0,0.00021917,2]
[342105964,1731447039456,-500.0,0.00021917,2]
[342105966,1731447039465,-500.0,0.00021917,2]
[342105968,1731447039475,-500.0,0.00021917,2]
[342105969,1731447039484,-500.0,0.00021917,2]
[342105972,1731447039493,-500.0,0.00021917,2]
[342105973,1731447039502,-500.0,0.00021917,2]
[342105975,1731447039511,-500.0,0.00021917,2]
[342105977,1731447039521,-407.94237186,0.00021917,2]
[342105978,1731447039530,-601.5941456,0.00021917,2]
[342105979,1731447039539,-500.0,0.00021917,2]
[342105980,1731447039548,-500.0,0.00021917,2]
[342105982,1731447039557,-566.22,0.00021917,2]
[342105983,1731447039566,-502.96580877,0.00021917,2]
[342105985,1731447039576,-542.51255206,0.00021917,2]
[342105986,1731447039585,-506.40538669,0.00021917,2]
[342105987,1731447039594,-500.0,0.00021917,2]
[342105988,1731447039604,-500.0,0.00021917,2]
[342105989,1731447039614,-500.0,0.00021917,2]
[342105990,1731447039623,-500.0,0.00021917,2]
[342105991,1731447039632,-500.0,0.00021917,2]
[342105992,1731447039642,-511.63196456,0.00021917,2]
[342105993,1731447039651,-500.0,0.00021917,2]
[342105994,1731447039661,-204.86,0.00021917,2]
[342105995,1731447039670,-500.0,0.00021917,2]
[342105996,1731447039680,-500.0,0.00021917,2]
[342105997,1731447039689,-500.0,0.00021917,2]
[342105998,1731447039699,-477.88069367,0.00021917,2]
[342105999,1731447039708,-500.0,0.00021917,2]
[342106000,1731447039717,-500.0,0.00021917,2]
[342106001,1731447039727,-500.0,0.00021917,2]
[342106002,1731447039737,-500.0,0.00021917,2]
[342106003,1731447039747,-500.0,0.00021917,2]
[342106004,1731447039756,-500.0,0.00021917,2]
[342106005,1731447039766,-500.0,0.00021917,2]
[342106006,1731447039776,-469.34885829,0.00021917,2]
[342106007,1731447039786,-500.0,0.00021917,2]
[342106008,1731447039796,-500.0,0.00021917,2]
[342106010,1731447039805,-500.019998,0.00021917,2]
[342106011,1731447039816,-500.0,0.00021917,2]
[342106012,1731447039826,-500.0,0.00021917,2]
[342106013,1731447039836,-500.0,0.00021917,2]
[342106014,1731447039847,-641.9,0.00021917,2]
[342106015,1731447039857,-500.0,0.00021917,2]
[342106016,1731447039869,-500.0,0.00021917,2]
[342106017,1731447039880,-500.0,0.00021917,2]
[342106018,1731447039890,-500.0,0.00021917,2]
[342106019,1731447039900,-500.0,0.00021917,2]
[342106020,1731447039909,-500.0,0.00021917,2]
[342106021,1731447039919,-3392.69,0.00021917,2]
[342106022,1731447039928,-502.04091463,0.00021917,2]
[342106023,1731447039940,-544.5766768,0.00021917,2]
[342106024,1731447039949,-280.70554499,0.00021917,2]
[342106025,1731447039958,-294.62554953,0.00021917,2]
[342106026,1731447039967,-500.0,0.00021917,2]
[342106027,1731447039977,-2207.33,0.00021917,2]
[342106028,1731447039986,-643.87,0.00021917,2]
[342106029,1731447039995,-500.0,0.00021917,2]
[342106030,1731447040005,-500.0,0.00021917,2]
[342106031,1731447040014,-500.0,0.00021917,2]
[342106032,1731447040023,-500.0,0.00021917,2]
[342106033,1731447040034,-500.0,0.00021917,2]
[342106034,1731447040043,-500.0,0.00021917,2]
[342106035,1731447040053,-10560.97,0.00021917,2]
[342106036,1731447040063,-500.0,0.00021917,2]
[342106037,1731447040073,-500.0,0.00021917,2]
[342106038,1731447040082,-500.0,0.00021917,2]
[342106039,1731447040091,-500.0,0.00021917,2]
[342106043,1731447040198,-500.0,0.00021917,2]
[342106044,1731447040211,-510.06812836,0.00021917,2]
[342106045,1731447040222,-506.52662423,0.00021917,2]
[342106046,1731447040231,-500.0,0.00021917,2]
[342106047,1731447040240,-500.0,0.00021917,2]
[342106048,1731447040250,-978.04,0.00021917,2]
[342106049,1731447040259,-2187.75,0.00021917,2]
[342106050,1731447040268,-1042.26,0.00021917,2]
[342106051,1731447040282,-500.0,0.00021917,2]
[342106052,1731447040292,-505.91524347,0.00021917,2]
[342106054,1731447040301,-776.23,0.00021917,2]
[342106056,1731447040310,-500.0,0.00021917,2]
[342106058,1731447040319,-508.70297176,0.00021917,2]
[342106059,1731447040328,-2619.41,0.00021917,2]
[342106060,1731447040337,-502.11,0.00021917,2]
[342106061,1731447040346,-500.0,0.00021917,2]
[342106062,1731447040355,-500.0,0.00021917,2]
[342106063,1731447040364,-500.0,0.00021917,2]
[342106064,1731447040373,-502.61275584,0.00021917,2]
[342106065,1731447040382,-500.0,0.00021917,2]
[342106066,1731447040391,-588.86,0.00021917,2]
[342106067,1731447040400,-500.0,0.00021917,2]
[342106068,1731447040409,-589.32,0.00021917,2]
[342106069,1731447040419,-500.0,0.00021917,2]
[342106070,1731447040428,-1169.78,0.00021917,2]
[342106071,1731447040437,-501.93988864,0.00021917,2]
[342106072,1731447040446,-834.18,0.00021917,2]
[342106073,1731447040455,-500.0,0.00021917,2]
[342106074,1731447040464,-202.591345,0.00021917,2]
[342106075,1731447040473,-500.0,0.00021917,2]
[342106076,1731447040482,-768.9,0.00021917,2]
[342106077,1731447040491,-522.90087624,0.00021917,2]
[342106078,1731447040500,-500.0,0.00021917,2]
[342106079,1731447040510,-501.23782326,0.00021917,2]
[342106080,1731447040519,-1450.13,0.00021917,2]
[342106081,1731447040528,-3152.41,0.00021917,2]
[342106082,1731447040539,-166.666666,0.00021918,2]
[342106083,1731447040548,-347.29956438,0.00021973,2]
[342106084,1731447040557,-341.0,0.00021999,2]
[342106085,1731447040566,-423.0,0.00022,2]
[342106086,1731447040575,-159.0,0.00022,2]
[342106087,1731447040585,-13495.65436402,0.00022,2]
[342106088,1731447040593,-164.0,0.00022,2]
[342106089,1731447040603,-152.382,0.0002201,2]
[342106090,1731447040612,-500.0,0.0002202,2]
[342106091,1731447040621,-162.57594182,0.00022182,2]
[342106092,1731447040631,-500.0,0.0002219,2]
[342106093,1731447040640,-500.0,0.0002219,2]
[342106094,1731447040650,-158.49091606,0.0002219,2]
[342106095,1731447040659,-237.86093303,0.0002219,2]
[342106096,1731447040668,-165.00675547,0.0002219,2]
[342106097,1731447040677,-522.65630076,0.0002219,2]
[342106098,1731447040686,-223.1645719,0.0002219,2]
[342106099,1731447040695,-500.0,0.00022191,2]
[342106100,1731447040704,-754.36,0.00022191,2]
[342106101,1731447040713,-500.0,0.00022191,2]
[342106102,1731447040722,-500.0,0.00022191,2]
[342106103,1731447040732,-500.0,0.00022191,2]
[342106104,1731447040740,-500.0,0.00022191,2]
[342106105,1731447040750,-500.0,0.00022191,2]
[342106106,1731447040759,-566.22,0.00022191,2]
[342106107,1731447040769,-500.0,0.00022191,2]
[342106108,1731447040778,-500.0,0.00022191,2]
[342106109,1731447040788,-500.0,0.00022191,2]
[342106110,1731447040798,-500.0,0.00022191,2]
[342106111,1731447040807,-483.89,0.00022191,2]
[342106112,1731447040816,-500.0,0.00022191,2]
[342106113,1731447040825,-500.0,0.00022191,2]
[342106114,1731447040835,-500.0,0.00022191,2]
[342106115,1731447040843,-500.0,0.00022191,2]
[342106116,1731447040853,-500.0,0.00022191,2]
[342106117,1731447040863,-641.9,0.00022191,2]
[342106118,1731447040872,-500.0,0.00022191,2]
[342106119,1731447040881,-500.0,0.00022191,2]
[342106120,1731447040890,-397.10732613,0.00022191,2]
[342106121,1731447040899,-500.0,0.00022191,2]
[342106122,1731447040908,-500.0,0.00022191,2]
[342106123,1731447040917,-3392.69,0.00022191,2]
[342106124,1731447040926,-2207.33,0.00022191,2]
[342106125,1731447040935,-500.0,0.00022191,2]
[342106126,1731447040944,-410.01498669,0.00022191,2]
[342106127,1731447040954,-10560.97,0.00022191,2]
[342106128,1731447040963,-500.0,0.00022191,2]
[342106129,1731447040972,-500.0,0.00022191,2]
[342106130,1731447040981,-500.0,0.00022191,2]
[342106131,1731447040991,-978.04,0.00022191,2]
[342106132,1731447041000,-2187.75,0.00022191,2]
[342106133,1731447041009,-1042.26,0.00022191,2]
[342106134,1731447041018,-500.0,0.00022191,2]
[342106135,1731447041027,-776.23,0.00022191,2]
[342106136,1731447041040,-500.0,0.00022191,2]
[342106137,1731447041050,-2619.41,0.00022191,2]
[342106138,1731447041059,-500.0,0.00022191,2]
[342106139,1731447041068,-500.0,0.00022191,2]
[342106140,1731447041078,-588.86,0.00022191,2]
[342106141,1731447041086,-500.0,0.00022191,2]
[342106142,1731447041095,-589.32,0.00022191,2]
[342106143,1731447041104,-500.0,0.00022191,2]
[342106144,1731447041114,-1169.78,0.00022191,2]
[342106145,1731447041123,-834.18,0.00022191,2]
[342106146,1731447041132,-500.0,0.00022191,2]
[342106147,1731447041141,-500.0,0.00022191,2]
[342106148,1731447041150,-768.9,0.00022191,2]
[342106149,1731447041159,-500.0,0.00022191,2]
[342106150,1731447041168,-1450.13,0.00022191,2]
[342106151,1731447041177,-3152.41,0.00022191,2]
[342106152,1731447041186,-423.0,0.00022192,2]
[342106153,1731447041196,-687.56,0.000222,2]
[342106154,1731447041209,-2390.0,0.00022395,2]
[342106155,1731447041218,-288.557,0.00022395,2]
[342106156,1731447041228,-166.666666,0.00022431,2]
[342106157,1731447041238,-500.0,0.00022464,2]
[342106158,1731447041246,-500.0,0.00022464,2]
[342106159,1731447041255,-500.0,0.00022464,2]
[342106160,1731447041265,-500.0,0.00022465,2]
[342106161,1731447041275,-754.36,0.00022465,2]
[342106162,1731447041290,-627.44793494,0.00022465,2]
[342106163,1731447041300,-151.0,0.00022465,7]
[342106164,1731447041309,-500.0,0.00022465,2]
[342106165,1731447041318,-151.0,0.00022465,7]
[342106166,1731447041327,-500.0,0.00022465,2]
[342106167,1731447041336,-306.549478,0.00022465,7]
[342106168,1731447041345,-306.549478,0.00022465,7]
[342106169,1731447041355,-151.0,0.00022465,7]
[342106170,1731447041365,-151.0,0.00022465,7]
[342106172,1731447041374,-151.0,0.00022465,7]
[342106174,1731447041383,-151.0,0.00022465,7]
[342106175,1731447041391,-500.0,0.00022465,2]
[342106177,1731447041401,-500.0,0.00022465,2]
[342106179,1731447041411,-566.22,0.00022465,2]
[342106180,1731447041420,-151.0,0.00022465,7]
[342106181,1731447041429,-151.0,0.00022465,7]
[342106183,1731447041438,-500.0,0.00022465,2]
[342106184,1731447041447,-500.0,0.00022465,2]
[342106186,1731447041456,-151.0,0.00022465,7]
[342106187,1731447041466,-500.0,0.00022465,2]
[342106188,1731447041475,-495.3762808,0.00022465,2]
[342106189,1731447041484,-151.0,0.00022465,7]
[342106190,1731447041493,-151.0,0.00022465,7]
[342106191,1731447041503,-151.0,0.00022465,7]
[342106192,1731447041512,-500.0,0.00022465,2]
[342106193,1731447041521,-500.0,0.00022465,2]
[342106194,1731447041529,-500.0,0.00022465,2]
[342106195,1731447041545,-151.0,0.00022465,7]
[342106196,1731447041554,-151.0,0.00022465,7]
[342106197,1731447041563,-151.0,0.00022465,7]
[342106198,1731447041572,-497.596948,0.00022465,7]
[342106200,1731447041581,-497.596948,0.00022465,7]
[342106202,1731447041590,-151.0,0.00022465,7]
[342106203,1731447041599,-172.237435,0.00022465,7]
[342106204,1731447041608,-172.237435,0.00022465,7]
[342106205,1731447041618,-151.0,0.00022465,7]
[342106206,1731447041626,-500.0,0.00022465,2]
[342106207,1731447041636,-500.0,0.00022465,2]
[342106208,1731447041645,-317.590331,0.00022465,7]
[342106209,1731447041654,-317.590331,0.00022465,7]
[342106210,1731447041664,-377.52278,0.00022465,7]
[342106211,1731447041673,-377.52278,0.00022465,7]
[342106212,1731447041682,-641.9,0.00022465,2]
[342106213,1731447041692,-151.0,0.00022465,7]
[342106214,1731447041701,-500.0,0.00022465,2]
[342106215,1731447041710,-500.0,0.00022465,2]
[342106216,1731447041719,-345.675505,0.00022465,7]
[342106217,1731447041728,-500.0,0.00022465,2]
[342106218,1731447041737,-345.675505,0.00022465,7]
[342106219,1731447041746,-151.0,0.00022465,7]
[342106220,1731447041755,-151.0,0.00022465,7]
[342106221,1731447041764,-151.0,0.00022465,7]
[342106222,1731447041773,-500.0,0.00022465,2]
[342106223,1731447041786,-3392.69,0.00022465,2]
[342106224,1731447041795,-151.0,0.00022465,7]
[342106225,1731447041805,-2207.33,0.00022465,2]
[342106226,1731447041814,-253.978399,0.00022465,7]
[342106227,1731447041823,-151.0,0.00022465,7]
[342106228,1731447041832,-253.978399,0.00022465,7]
[342106229,1731447041842,-500.0,0.00022465,2]
[342106230,1731447041851,-10560.97,0.00022465,2]
[342106231,1731447041859,-500.0,0.00022465,2]
[342106232,1731447041869,-296.45404908,0.00022465,2]
[342106233,1731447041878,-500.0,0.00022465,2]
[342106234,1731447041887,-978.04,0.00022465,2]
[342106235,1731447041896,-2187.75,0.00022465,2]
[342106236,1731447041905,-1042.26,0.00022465,2]
[342106237,1731447041914,-203.8219064,0.00022465,2]
[342106238,1731447041923,-895.434954,0.00022465,7]
[342106239,1731447041932,-776.23,0.00022465,2]
[342106240,1731447041942,-500.0,0.00022465,2]
[342106241,1731447041951,-895.434954,0.00022465,7]
[342106242,1731447041960,-2619.41,0.00022465,2]
[342106243,1731447041969,-752.147464,0.00022465,7]
[342106244,1731447041978,-500.0,0.00022465,2]
[342106245,1731447041987,-752.147464,0.00022465,7]
[342106246,1731447041996,-500.0,0.00022465,2]
[342106247,1731447042005,-588.86,0.00022465,2]
[342106248,1731447042014,-500.0,0.00022465,2]
[342106249,1731447042023,-589.32,0.00022465,2]
[342106250,1731447042035,-151.0,0.00022465,7]
[342106251,1731447042046,-500.0,0.00022465,2]
[342106252,1731447042056,-1279.133574,0.00022465,7]
[342106253,1731447042066,-540.048605,0.00022465,7]
[342106254,1731447042077,-1169.78,0.00022465,2]
[342106255,1731447042086,-1279.133574,0.00022465,7]
[342106256,1731447042095,-189.536368,0.00022465,7]
[342106257,1731447042105,-834.18,0.00022465,2]
[342106258,1731447042114,-540.048605,0.00022465,7]
[342106259,1731447042123,-500.0,0.00022465,2]
[342106260,1731447042132,-189.536368,0.00022465,7]
[342106261,1731447042141,-151.0,0.00022465,7]
[342106262,1731447042150,-500.0,0.00022465,2]
[342106263,1731447042160,-768.9,0.00022465,2]
[342106264,1731447042170,-528.960719,0.00022465,7]
[342106265,1731447042179,-528.960719,0.00022465,7]
[342106266,1731447042188,-549.569086,0.00022465,7]
[342106267,1731447042197,-500.0,0.00022465,2]
[342106268,1731447042210,-549.569086,0.00022465,7]